lending/lending_fUSD_20240621
["ID","MTS","AMOUNT","RATE_DAILY","PERIOD"]
[330034269,1718956596179,-2360.82,0.00041095,31]
[330034270,1718956596204,-500.0,0.00041095,31]
[330034271,1718956596230,-3237.79,0.00041095,31]
[330034272,1718956596255,-500.0,0.00041095,31]
[330034273,1718956596281,-2099.29,0.00041095,31]
[330034274,1718956596306,-4248.62,0.00041095,31]
[330034275,1718956596332,-13130.23,0.00041095,31]
[330034276,1718956596359,-500.0,0.00041095,31]
[330034277,1718956596385,-13130.23,0.00041095,31]
[330034278,1718956596414,-1620.74,0.00041095,31]
[330034279,1718956596439,-13130.23,0.00041095,31]
[330034280,1718956596465,-13130.23,0.00041095,31]
[330034281,1718956596489,-500.0,0.00041095,31]
[330034282,1718956596516,-13130.23,0.00041095,31]
[330034283,1718956596540,-500.0,0.00041095,31]
[330034284,1718956596566,-13130.23,0.00041095,31]
[330034285,1718956596591,-13130.23,0.00041095,31]
[330034286,1718956596622,-2733.95,0.00041095,31]
[330034287,1718956596647,-13130.23,0.00041095,31]
[330034288,1718956596672,-500.0,0.00041095,31]
[330034289,1718956596699,-13130.23,0.00041095,31]
[330034290,1718956596726,-770.73,0.00041095,31]
[330034291,1718956596753,-13130.23,0.00041095,31]
[330034292,1718956596779,-13130.23,0.00041095,31]
[330034293,1718956596804,-13130.23,0.00041095,31]
[330034294,1718956596831,-13130.23,0.00041095,31]
[330034295,1718956596860,-500.0,0.00041095,31]
[330034296,1718956596886,-13130.23,0.00041095,31]
[330034297,1718956596913,-13130.23,0.00041095,31]
[330034298,1718956596941,-1051.1,0.00041095,31]
[330034299,1718956596969,-13130.23,0.00041095,31]
[330034300,1718956596995,-13130.23,0.00041095,31]
[330034301,1718956597022,-13130.23,0.00041095,31]
[330034302,1718956597046,-500.0,0.00041095,31]
[330034303,1718956597074,-13130.23,0.00041095,31]
[330034304,1718956597102,-500.0,0.00041095,31]
[330034305,1718956597128,-13130.23,0.00041095,31]
[330034306,1718956597153,-13130.23,0.00041095,31]
[330034307,1718956597179,-13130.23,0.00041095,31]
[330034308,1718956597206,-13130.23,0.00041095,31]
[330034309,1718956597234,-13130.36033159,0.00041095,31]
[330034310,1718956597260,-500.0,0.00041095,31]
[330034311,1718956597286,-860.02,0.00041095,31]
[330034312,1718956597311,-500.0,0.00041095,31]
[330034313,1718956597337,-500.0,0.00041095,31]
[330034314,1718956597368,-500.0,0.00041095,31]
[330034315,1718956597394,-1033.9,0.00041095,31]
[330034316,1718956597419,-500.0,0.00041095,31]
[330034317,1718956597445,-2453.91,0.00041095,31]
[330034318,1718956597471,-4988.84,0.00041095,31]
[330034319,1718956597496,-500.0,0.00041095,31]
[330034320,1718956597520,-249.31059248,0.00041095,31]
[330034321,1718956597544,-500.0,0.00041095,31]
[330034322,1718956597569,-500.0,0.00041095,31]
[330034323,1718956597594,-500.0,0.00041095,31]
[330034324,1718956597620,-500.0,0.00041095,31]
[330034325,1718956597645,-970.33,0.00041095,31]
[330034326,1718956597669,-510.0,0.00041095,120]
[330034327,1718956597693,-500.0,0.00041095,31]
[330034328,1718956597717,-617.18,0.00041095,31]
[330034329,1718956597743,-500.82956885,0.00041095,31]
[330034330,1718956597767,-1588.68,0.00041095,31]
[330034331,1718956597791,-500.0,0.00041095,31]
[330034332,1718956597820,-1509.47,0.00041095,31]
[330034333,1718956597845,-500.0,0.00041095,31]
[330034334,1718956597873,-500.0,0.00041095,31]
[330034335,1718956597899,-425.09569102,0.00041095,31]
[330034336,1718956597924,-500.0,0.00041095,31]
[330034337,1718956597947,-664.31,0.00041095,31]
[330034338,1718956597971,-500.0,0.00041095,31]
[330034339,1718956597995,-500.0,0.00041095,31]
[330034340,1718956598019,-688.95,0.00041095,31]
[330034341,1718956598044,-3300.1,0.00041095,31]
[330034342,1718956598067,-4595.02,0.00041095,31]
[330034343,1718956598091,-500.0,0.00041095,31]
[330034344,1718956598118,-2150.63,0.00041095,31]
[330034345,1718956598142,-4968.07,0.00041095,31]
[330034346,1718956598166,-1441.36,0.00041095,31]
[330034347,1718956598190,-1460.58,0.00041095,31]
[330034348,1718956598213,-1346.01,0.00041095,31]
[330034349,1718956598237,-502.52310544,0.00041095,31]
[330034350,1718956598264,-9622.63,0.00041095,31]
[330034351,1718956598289,-500.0,0.00041095,31]
[330034352,1718956598314,-500.0,0.00041095,31]
[330034353,1718956598340,-500.0,0.00041095,31]
[330034354,1718956598367,-500.0,0.00041095,31]
[330034355,1718956598392,-3893.84,0.00041095,31]
[330034356,1718956598417,-533.71222749,0.00041095,31]
[330034357,1718956598444,-500.0,0.00041095,31]
[330034358,1718956598471,-4338.01,0.00041095,31]
[330034359,1718956598495,-500.0,0.00041095,31]
[330034360,1718956598519,-500.0,0.00041095,31]
[330034361,1718956598544,-2111.76,0.00041095,31]
[330034362,1718956598569,-500.0,0.00041095,31]
[330034363,1718956598592,-525.69,0.00041095,31]
[330034364,1718956598620,-9470.05,0.00041095,31]
[330034365,1718956598642,-839.74,0.00041095,31]
[330034366,1718956598873,-500.0,0.00041095,31]
[330034367,1718956598897,-726.65,0.00041095,31]
[330034368,1718956598924,-500.0,0.00041095,90]
[330034369,1718956598951,-2609.81,0.00041095,31]
[330034370,1718956598974,-2084.38,0.00041095,31]
[330034371,1718956598997,-500.0,0.00041095,31]
[330034372,1718956599020,-1296.32,0.00041095,31]
[330034373,1718956599044,-500.0,0.00041095,31]
[330034374,1718956599068,-2023.83,0.00041095,31]
[330034375,1718956599092,-500.0,0.00041095,31]
[330034376,1718956599127,-500.0,0.00041095,31]
[330034377,1718956599151,-964.89,0.00041095,31]
[330034378,1718956599174,-500.0,0.00041095,31]
[330034379,1718956599199,-500.0,0.00041095,31]
[330034380,1718956599224,-4718.65,0.00041095,31]
[330034381,1718956599248,-500.0,0.00041095,31]
[330034382,1718956599273,-524.84224974,0.00041095,31]
[330034383,1718956599297,-500.0,0.00041095,31]
[330034384,1718956599322,-692.7,0.00041095,31]
[330034385,1718956599351,-558.32,0.00041095,31]
[330034386,1718956599376,-500.0,0.00041095,31]
[330034387,1718956599401,-1466.59,0.00041095,31]
[330034388,1718956599426,-3102.45,0.00041095,31]
[330034389,1718956599450,-500.0,0.00041095,31]
[330034390,1718956599475,-500.0,0.00041095,31]
[330034391,1718956599499,-995.34,0.00041095,31]
[330034392,1718956599524,-500.0,0.00041095,31]
[330034393,1718956599550,-9218.86,0.00041095,31]
[330034394,1718956599576,-500.0,0.00041095,31]
[330034395,1718956599604,-500.0,0.00041095,31]
[330034396,1718956599630,-1769.9,0.00041095,31]
[330034397,1718956599654,-500.0,0.00041095,31]
[330034398,1718956599678,-9218.86,0.00041095,31]
[330034399,1718956599702,-500.0,0.00041095,31]
[330034400,1718956599726,-500.0,0.00041095,31]
[330034401,1718956599750,-500.0,0.00041095,31]
[330034402,1718956599776,-9218.86,0.00041095,31]
[330034403,1718956599800,-500.0,0.00041095,31]
[330034404,1718956599827,-9218.86,0.00041095,31]
[330034405,1718956599852,-500.0,0.00041095,31]
[330034406,1718956599879,-500.0,0.00041095,31]
[330034407,1718956599905,-14762.29,0.00041095,31]
[330034408,1718956599931,-9218.86,0.00041095,31]
[330034409,1718956599957,-9218.86,0.00041095,31]
[330034410,1718956599982,-9218.86,0.00041095,31]
[330034411,1718956600007,-500.0,0.00041095,31]
[330034412,1718956600030,-500.0,0.00041095,31]
[330034413,1718956600054,-9218.86,0.00041095,31]
[330034414,1718956600078,-500.0,0.00041095,31]
[330034415,1718956600104,-9218.86,0.00041095,31]
[330034416,1718956600127,-500.0,0.00041095,31]
[330034417,1718956600152,-9218.86,0.00041095,31]
[330034418,1718956600176,-274.02174666,0.00041095,31]
[330034419,1718956600201,-9218.86,0.00041095,31]
[330034420,1718956600225,-500.0,0.00041095,31]
[330034421,1718956600249,-500.0,0.00041095,31]
[330034422,1718956600274,-500.0,0.00041095,31]
[330034423,1718956600301,-1640.68,0.00041095,31]
[330034424,1718956600328,-500.0,0.00041095,31]
[330034425,1718956600352,-500.0,0.00041095,31]
[330034426,1718956600377,-11030.11,0.00041095,31]
[330034427,1718956600402,-2774.88,0.00041095,31]
[330034428,1718956600426,-2592.71,0.00041095,31]
[330034429,1718956600452,-523.15,0.00041095,31]
[330034430,1718956600477,-9218.86,0.00041095,31]
[330034431,1718956600502,-9218.86,0.00041095,31]
[330034432,1718956600527,-557.96,0.00041095,31]
[330034433,1718956600553,-9218.86,0.00041095,31]
[330034434,1718956600577,-1316.85,0.00041095,31]
[330034435,1718956600603,-9218.86,0.00041095,31]
[330034436,1718956600626,-500.0,0.00041095,31]
[330034437,1718956600651,-9218.86,0.00041095,31]
[330034438,1718956600676,-9218.86,0.00041095,31]
[330034439,1718956600700,-1287.84,0.00041095,31]
[330034440,1718956600725,-500.0,0.00041095,31]
[330034441,1718956600748,-3617.11,0.00041095,31]
[330034442,1718956600774,-500.0,0.00041095,31]
[330034443,1718956600801,-9218.86,0.00041095,31]
[330034444,1718956600828,-9218.86,0.00041095,31]
[330034445,1718956600855,-500.0,0.00041095,31]
[330034446,1718956600882,-9218.86,0.00041095,31]
[330034447,1718956600909,-9218.86,0.00041095,31]
[330034448,1718956600935,-9218.86,0.00041095,31]
[330034449,1718956600960,-4991.99,0.00041095,31]
[330034450,1718956600984,-9218.86,0.00041095,31]
[330034451,1718956601010,-9218.94057152,0.00041095,31]
[330034452,1718956601035,-2058.4,0.00041095,31]
[330034453,1718956601058,-7307.68,0.00041095,31]
[330034454,1718956601081,-500.0,0.00041095,31]
[330034455,1718956601105,-500.0,0.00041095,31]
[330034456,1718956601128,-507.64718998,0.00041095,31]
[330034457,1718956601151,-500.0,0.00041095,31]
[330034458,1718956601174,-500.0,0.00041095,31]
[330034459,1718956601200,-689.75,0.00041095,31]
[330034460,1718956601226,-500.0,0.00041095,31]
[330034461,1718956601251,-12366.37,0.00041095,31]
[330034462,1718956601275,-500.0,0.00041095,31]
[330034463,1718956601300,-682.56,0.00041095,31]
[330034464,1718956601324,-500.0,0.00041095,31]
[330034465,1718956601347,-1435.98,0.00041095,31]
[330034466,1718956601374,-519.8890719,0.00041095,31]
[330034467,1718956601396,-1044.29,0.00041095,31]
[330034468,1718956601420,-1609.7,0.00041095,31]
[330034469,1718956601443,-1442.63,0.00041095,31]
[330034470,1718956601673,-3273.66,0.00041095,31]
[330034471,1718956601698,-165.06457114,0.00041095,31]
[330034472,1718956601722,-723.87,0.00041095,31]
[330034473,1718956601748,-1129.79,0.00041095,31]
[330034474,1718956601772,-500.0,0.00041095,31]
[330034475,1718956601795,-500.0,0.00041095,31]
[330034476,1718956601824,-500.0,0.00041095,31]
[330034477,1718956601851,-516.11360268,0.00041095,30]
[330034478,1718956601880,-657.7,0.00041095,31]
[330034479,1718956601906,-500.0,0.00041095,31]
[330034480,1718956601930,-150.0,0.00041095,31]
[330034481,1718956601954,-4912.27,0.00041095,31]
[330034482,1718956601977,-1100.01,0.00041095,31]
[330034483,1718956602000,-548.63,0.00041095,31]
[330034484,1718956602023,-1090.44,0.00041095,31]
[330034485,1718956602046,-10504.93,0.00041095,31]
[330034486,1718956602069,-500.0,0.00041095,31]
[330034487,1718956602093,-500.0,0.00041095,31]
[330034488,1718956602120,-500.0,0.00041095,31]
[330034489,1718956602145,-1418.84,0.00041095,31]
[330034490,1718956602169,-1407.73,0.00041095,31]
[330034491,1718956602193,-4755.35,0.00041095,31]
[330034492,1718956602217,-10255.2,0.00041095,31]
[330034493,1718956602241,-500.0,0.00041095,31]
[330034494,1718956602264,-500.0,0.00041095,31]
[330034495,1718956602289,-500.0,0.00041095,31]
[330034496,1718956602315,-2000.0,0.00041095,31]
[330034497,1718956602340,-964.53,0.00041095,31]
[330034498,1718956602369,-925.44,0.00041095,31]
[330034499,1718956602393,-500.0,0.00041095,31]
[330034500,1718956602418,-500.0,0.00041095,31]
[330034501,1718956602444,-1219.64,0.00041095,31]
[330034502,1718956602471,-503.07,0.00041095,31]
[330034503,1718956602496,-529.6443264,0.00041095,31]
[330034504,1718956602522,-500.0,0.00041095,31]
[330034505,1718956602547,-500.0,0.00041095,31]
[330034506,1718956602570,-500.0,0.00041095,31]
[330034507,1718956602593,-519.15,0.00041095,31]
[330034508,1718956602620,-935.33,0.00041095,31]
[330034509,1718956602644,-500.0,0.00041095,31]
[330034510,1718956602667,-500.0,0.00041095,31]
[330034511,1718956602691,-500.0,0.00041095,31]
[330034512,1718956602714,-708.03,0.00041095,31]
[330034513,1718956602737,-500.0,0.00041095,31]
[330034514,1718956602760,-501.25760503,0.00041095,31]
[330034515,1718956602784,-2270.49,0.00041095,31]
[330034516,1718956602806,-500.0,0.00041095,31]
[330034517,1718956602834,-500.0,0.00041095,31]
[330034518,1718956602858,-6119.17,0.00041095,31]
[330034519,1718956602882,-284.68426597,0.00041095,31]
[330034520,1718956602906,-500.0,0.00041095,31]
[330034521,1718956602931,-870.03,0.00041095,31]
[330034522,1718956602954,-500.0,0.00041095,31]
[330034523,1718956602979,-750.0,0.00041095,31]
[330034524,1718956603002,-548.39,0.00041095,31]
[330034525,1718956603027,-500.0,0.00041095,31]
[330034526,1718956603051,-1031.43,0.00041095,31]
[330034527,1718956603073,-771.08,0.00041095,31]
[330034528,1718956603097,-500.0,0.00041095,31]
[330034529,1718956603122,-500.0,0.00041095,31]
[330034530,1718956603146,-500.0,0.00041095,31]
[330034531,1718956603170,-500.0,0.00041095,31]
[330034532,1718956603193,-500.0,0.00041095,31]
[330034533,1718956603217,-500.0,0.00041095,31]
[330034534,1718956603241,-1000.0,0.00041095,31]
[330034535,1718956603265,-500.0,0.00041095,31]
[330034536,1718956603289,-4002.69,0.00041095,31]
[330034537,1718956603312,-4493.98,0.00041095,31]
[330034538,1718956603337,-6431.19,0.00041095,31]
[330034539,1718956603362,-500.0,0.00041095,31]
[330034540,1718956603387,-500.0,0.00041095,31]
[330034541,1718956603410,-526.54,0.00041095,31]
[330034542,1718956603433,-500.0,0.00041095,31]
[330034543,1718956603455,-500.0,0.00041095,31]
[330034544,1718956603478,-500.0,0.00041095,31]
[330034545,1718956603500,-500.0,0.00041095,31]
[330034546,1718956603523,-1852.58,0.00041095,31]
[330034547,1718956603548,-500.0,0.00041095,31]
[330034548,1718956603571,-500.0,0.00041095,31]
[330034549,1718956603594,-3046.71,0.00041095,31]
[330034550,1718956603618,-500.0,0.00041095,31]
[330034551,1718956603642,-2045.18,0.00041095,31]
[330034552,1718956603665,-475.53047602,0.00041095,31]
[330034553,1718956603689,-981.43,0.00041095,31]
[330034554,1718956603713,-500.0,0.00041095,31]
[330034555,1718956603737,-803.22,0.00041095,31]
[330034556,1718956603761,-562.04,0.00041095,31]
[330034557,1718956603784,-500.0,0.00041095,31]
[330034558,1718956603808,-549.5465489,0.00041095,31]
[330034559,1718956603834,-500.0,0.00041095,31]
[330034560,1718956603860,-500.0,0.00041095,31]
[330034561,1718956603884,-6731.26,0.00041095,31]
[330034562,1718956603909,-642.63,0.00041095,31]
[330034563,1718956603933,-670.74,0.00041095,31]
[330034564,1718956603956,-502.11941573,0.00041095,31]
[330034565,1718956603979,-500.0,0.00041095,31]
[330034566,1718956604002,-500.0,0.00041095,31]
[330034567,1718956604025,-2794.18,0.00041095,31]
[330034568,1718956604048,-2094.09,0.00041095,31]
[330034569,1718956604072,-2411.64,0.00041095,31]
[330034570,1718956604096,-4332.86,0.00041095,31]
[330034571,1718956604121,-500.0,0.00041095,31]
[330034572,1718956604144,-500.0,0.00041095,31]
[330034573,1718956604166,-500.0,0.00041095,31]
[330034574,1718956604189,-625.32,0.00041095,31]
[330034575,1718956604420,-787.77,0.00041095,31]
[330034576,1718956604445,-1266.16,0.00041095,31]
[330034577,1718956604469,-500.0,0.00041095,31]
[330034578,1718956604493,-500.0,0.00041095,31]
[330034579,1718956604517,-2772.43,0.00041095,31]
[330034580,1718956604540,-2811.62,0.00041095,31]
[330034581,1718956604563,-500.0,0.00041095,31]
[330034582,1718956604586,-6851.03,0.00041095,31]
[330034583,1718956604609,-1109.59,0.00041095,31]
[330034584,1718956604633,-500.0,0.00041095,31]
[330034585,1718956604656,-500.0,0.00041095,31]
[330034586,1718956604680,-1313.17,0.00041095,31]
[330034587,1718956604703,-500.0,0.00041095,31]
[330034588,1718956604727,-1380.05,0.00041095,31]
[330034589,1718956604752,-500.0,0.00041095,31]
[330034590,1718956604776,-1050.92,0.00041095,31]
[330034591,1718956604800,-500.0,0.00041095,31]
[330034592,1718956604830,-523.74,0.00041095,31]
[330034593,1718956604856,-500.0,0.00041095,31]
[330034594,1718956604880,-500.0,0.00041095,31]
[330034595,1718956604906,-521.03,0.00041095,31]
[330034596,1718956604929,-500.0,0.00041095,31]
[330034597,1718956604954,-500.0,0.00041095,31]
[330034598,1718956604979,-500.0,0.00041095,31]
[330034599,1718956605003,-3892.57,0.00041095,31]
[330034600,1718956605027,-851.12,0.00041095,31]
[330034601,1718956605052,-716.39,0.00041095,31]
[330034602,1718956605077,-500.0,0.00041095,31]
[330034603,1718956605107,-595.71511376,0.00041095,31]
[330034604,1718956605133,-784.29,0.00041095,31]
[330034605,1718956605158,-500.0,0.00041095,31]
[330034606,1718956605184,-2830.23,0.00041095,31]
[330034607,1718956605210,-2150.26,0.00041095,31]
[330034608,1718956605237,-500.0,0.00041095,31]
[330034609,1718956605262,-500.0,0.00041095,30]
[330034610,1718956605287,-8086.38,0.00041095,31]
[330034611,1718956605312,-704.67,0.00041095,31]
[330034612,1718956605336,-500.0,0.00041095,31]
[330034613,1718956605368,-500.0,0.00041095,31]
[330034614,1718956605393,-500.0,0.00041095,31]
[330034615,1718956605419,-500.0,0.00041095,31]
[330034616,1718956605444,-500.0,0.00041095,31]
[330034617,1718956605470,-565.47,0.00041095,31]
[330034618,1718956605495,-500.0,0.00041095,31]
[330034619,1718956605521,-500.0,0.00041095,31]
[330034620,1718956605547,-500.0,0.00041095,31]
[330034621,1718956605570,-500.0,0.00041095,31]
[330034622,1718956605593,-555.64478182,0.00041095,31]
[330034623,1718956605626,-500.0,0.00041095,31]
[330034624,1718956605650,-500.0,0.00041095,31]
[330034625,1718956605672,-650.36,0.00041095,31]
[330034626,1718956605697,-500.0,0.00041095,31]
[330034627,1718956605723,-2235.27,0.00041095,31]
[330034628,1718956605746,-500.0,0.00041095,31]
[330034629,1718956605769,-500.0,0.00041095,31]
[330034630,1718956605792,-2644.14,0.00041095,31]
[330034631,1718956605820,-500.0,0.00041095,31]
[330034632,1718956605843,-500.0,0.00041095,31]
[330034633,1718956605875,-1835.83,0.00041095,31]
[330034634,1718956605899,-500.0,0.00041095,31]
[330034635,1718956605924,-500.0,0.00041095,31]
[330034636,1718956605948,-500.0,0.00041095,31]
[330034637,1718956605972,-3674.3,0.00041095,31]
[330034638,1718956605994,-711.69,0.00041095,31]
[330034639,1718956606017,-500.0,0.00041095,31]
[330034640,1718956606041,-3398.89,0.00041095,31]
[330034641,1718956606064,-1258.37,0.00041095,31]
[330034642,1718956606088,-500.0,0.00041095,31]
[330034643,1718956606117,-7618.27,0.00041095,31]
[330034644,1718956606140,-596.32,0.00041095,31]
[330034645,1718956606163,-500.0,0.00041095,31]
[330034646,1718956606186,-755.86,0.00041095,31]
[330034647,1718956606209,-500.0,0.00041095,31]
[330034648,1718956606231,-500.0,0.00041095,31]
[330034649,1718956606254,-2976.27,0.00041095,31]
[330034650,1718956606277,-500.75,0.00041095,31]
[330034651,1718956606300,-500.0,0.00041095,31]
[330034652,1718956606323,-500.0,0.00041095,31]
[330034653,1718956606346,-500.0,0.00041095,31]
[330034654,1718956606373,-502.11100456,0.00041095,31]
[330034655,1718956606396,-2879.44,0.00041095,31]
[330034656,1718956606419,-23670.83,0.00041095,31]
[330034657,1718956606443,-500.0,0.00041095,31]
[330034658,1718956606467,-500.29,0.00041095,31]
[330034659,1718956606491,-4863.31,0.00041095,31]
[330034660,1718956606514,-500.0,0.00041095,31]
[330034661,1718956606538,-7680.94,0.00041095,31]
[330034662,1718956606562,-5938.09,0.00041095,31]
[330034663,1718956606587,-500.0,0.00041095,31]
[330034664,1718956606614,-772.45,0.00041095,31]
[330034665,1718956606639,-580.69,0.00041095,31]
[330034666,1718956606664,-1989.29,0.00041095,31]
[330034667,1718956606690,-500.0,0.00041095,31]
[330034668,1718956606716,-500.0,0.00041095,31]
[330034669,1718956606741,-500.0,0.00041095,31]
[330034670,1718956606766,-3011.41,0.00041095,31]
[330034671,1718956606789,-500.0,0.00041095,31]
[330034672,1718956606814,-3978.56,0.00041095,31]
[330034673,1718956606840,-796.56,0.00041095,31]
[330034674,1718956606868,-569.37,0.00041095,31]
[330034675,1718956606893,-500.0,0.00041095,31]
[330034676,1718956606923,-1290.44,0.00041095,31]
[330034677,1718956606948,-3472.13,0.00041095,31]
[330034678,1718956606973,-500.0,0.00041095,31]
[330034679,1718956606996,-500.0,0.00041095,31]
[330034680,1718956607224,-500.0,0.00041095,31]
[330034681,1718956607249,-500.0,0.00041095,31]
[330034682,1718956607273,-500.0,0.00041095,31]
[330034683,1718956607298,-497.13041026,0.00041095,31]
[330034684,1718956607322,-2681.47,0.00041095,31]
[330034685,1718956607347,-1199.39,0.00041095,31]
[330034686,1718956607374,-19890.01,0.00041095,31]
[330034687,1718956607400,-1802.42,0.00041095,31]
[330034688,1718956607426,-500.0,0.00041095,31]
[330034689,1718956607450,-500.0,0.00041095,31]
[330034690,1718956607476,-500.0,0.00041095,31]
[330034691,1718956607500,-17327.73,0.00041095,31]
[330034692,1718956607524,-500.0,0.00041095,31]
[330034693,1718956607549,-1095.41,0.00041095,31]
[330034694,1718956607573,-909.98,0.00041095,31]
[330034695,1718956607597,-500.0,0.00041095,31]
[330034696,1718956607624,-1228.23,0.00041095,31]
[330034697,1718956607648,-726.97,0.00041095,31]
[330034698,1718956607672,-500.0,0.00041095,31]
[330034699,1718956607698,-1122.95,0.00041095,31]
[330034700,1718956607723,-1275.42,0.00041095,31]
[330034701,1718956607747,-500.0,0.00041095,31]
[330034702,1718956607771,-500.0,0.00041095,31]
[330034703,1718956607797,-500.0,0.00041095,31]
[330034704,1718956607826,-500.0,0.00041095,31]
[330034705,1718956607851,-500.0,0.00041095,31]
[330034706,1718956607881,-500.0,0.00041095,31]
[330034707,1718956607908,-500.0,0.00041095,31]
[330034708,1718956607935,-500.0,0.00041095,31]
[330034709,1718956607961,-1452.78,0.00041095,31]
[330034710,1718956607986,-500.0,0.00041095,31]
[330034711,1718956608011,-1482.72,0.00041095,31]
[330034712,1718956608036,-500.0,0.00041095,31]
[330034713,1718956608062,-338.84886684,0.00041095,31]
[330034714,1718956608087,-500.0,0.00041095,31]
[330034715,1718956608113,-500.0,0.00041095,31]
[330034716,1718956608138,-1088.54,0.00041095,31]
[330034717,1718956608162,-8181.37,0.00041095,31]
[330034718,1718956608186,-1792.94,0.00041095,31]
[330034719,1718956608209,-500.0,0.00041095,31]
[330034720,1718956608233,-500.0,0.00041095,31]
[330034721,1718956608256,-500.0,0.00041095,31]
[330034722,1718956608281,-811.19,0.00041095,31]
[330034723,1718956608305,-500.0,0.00041095,31]
[330034724,1718956608329,-500.0,0.00041095,31]
[330034725,1718956608352,-500.0,0.00041095,31]
[330034726,1718956608380,-567.41,0.00041095,31]
[330034727,1718956608404,-500.0,0.00041095,31]
[330034728,1718956608428,-500.0,0.00041095,31]
[330034729,1718956608451,-500.0,0.00041095,31]
[330034730,1718956608475,-500.0,0.00041095,31]
[330034731,1718956608499,-500.0,0.00041095,31]
[330034732,1718956608523,-500.0,0.00041095,31]
[330034733,1718956608549,-500.0,0.00041095,31]
[330034734,1718956608573,-500.0,0.00041095,31]
[330034735,1718956608597,-1799.75,0.00041095,31]
[330034736,1718956608623,-500.0,0.00041095,31]
[330034737,1718956608648,-500.0,0.00041095,31]
[330034738,1718956608671,-500.0,0.00041095,31]
[330034739,1718956608695,-875.06,0.00041095,31]
[330034740,1718956608719,-9972.12,0.00041095,31]
[330034741,1718956608743,-500.0,0.00041095,31]
[330034742,1718956608771,-428.82,0.0004111,120]
[330034743,1718956608795,-151.0,0.00041123,120]
[330034744,1718956608818,-1461.85986,0.00041288,30]
[330034745,1718956608845,-4600.0,0.00041342,30]
[330034746,1718956608871,-1300.0,0.00041342,30]
[330034747,1718956608894,-5300.0,0.00041342,30]
[330034748,1718956608923,-500.0,0.00041342,30]
[330034749,1718956608951,-459.65713262,0.00041369,31]
[330034750,1718956608975,-500.0,0.00041369,31]
[330034751,1718956608999,-500.0,0.00041369,31]
[330034752,1718956609022,-500.0,0.00041369,31]
[330034753,1718956609045,-500.0,0.00041369,31]
[330034754,1718956609069,-500.0,0.00041369,31]
[330034755,1718956609092,-505.03020582,0.00041369,31]
[330034756,1718956609116,-500.0,0.00041369,31]
[330034757,1718956609140,-500.0,0.00041369,31]
[330034758,1718956609165,-529.3395194,0.00041369,31]
[330034759,1718956609189,-500.0,0.00041369,31]
[330034760,1718956609213,-500.0,0.00041369,31]
[330034761,1718956609240,-500.0,0.00041369,31]
[330034762,1718956609264,-546.01259146,0.00041369,31]
[330034763,1718956609287,-500.0,0.00041369,31]
[330034764,1718956609310,-500.0,0.00041369,31]
[330034765,1718956609334,-500.0,0.00041369,31]
[330034766,1718956609359,-500.0,0.00041369,31]
[330034767,1718956609383,-319.31567258,0.00041369,31]
[330034768,1718956609407,-468.32281307,0.00041369,31]